[Event "Norway Chess 2015 Blitz"]
[Site "Stavanger"]
[Date "2015.06.15"]
[Round "8"]
[White "Topalov, Veselin"]
[Black "Anand, Viswanathan"]
[Result "1/2-1/2"]
[ECO "E10"]
[WhiteElo "2641"]
[BlackElo "2767"]
[Annotator ""]
[PlyCount "91"]
[EventDate "2015.??.??"]
[EventCountry "NOR"]
[TimeControl "180+2"]

1. d4 {[%emt 0:00:00]} Nf6 {[%emt 0:00:00]} 2. c4 {[%emt 0:00:01]} e6 {[%emt 0:
00:00]} 3. Nf3 {[%emt 0:00:02]} d5 {[%emt 0:00:00]} 4. e3 {[%emt 0:00:07]} Be7
{[%emt 0:00:02]} 5. b3 {[%emt 0:00:03]} O-O {[%emt 0:00:05]} 6. Bb2 {[%emt 0:
00:01]} c5 {[%emt 0:00:01]} 7. dxc5 {[%emt 0:00:02]} dxc4 {[%emt 0:00:06]} 8.
Bxc4 {[%emt 0:00:15]} Qxd1+ {[%emt 0:00:10]} 9. Kxd1 {[%emt 0:00:01]} Bxc5 {
[%emt 0:00:01]} 10. Ke2 {[%emt 0:00:02]} Bd7 {[%emt 0:00:03]} 11. Rc1 {[%emt 0:
00:06]} Rc8 {[%emt 0:00:06]} 12. Bd3 {[%emt 0:00:17]} Bc6 {[%emt 0:00:08]} 13.
Ne5 {[%emt 0:00:18]} Nbd7 {[%emt 0:00:13]} 14. Nxc6 {[%emt 0:00:10]} Rxc6 {
[%emt 0:00:02]} 15. Nd2 {[%emt 0:00:05]} Rac8 {[%emt 0:00:05]} 16. a3 {[%emt 0:
00:19]} Bd6 {[%emt 0:00:09]} 17. Rxc6 {[%emt 0:00:04]} Rxc6 {[%emt 0:00:01]}
18. Rc1 {[%emt 0:00:19]} Rxc1 {[%emt 0:00:05]} 19. Bxc1 {[%emt 0:00:01]} Kf8 {
[%emt 0:00:11]} 20. g3 {[%emt 0:00:08]} Nd5 {[%emt 0:00:08]} 21. Be4 {[%emt 0:
00:36]} Nc3+ {[%emt 0:00:02]} 22. Kd3 {[%emt 0:00:01]} Nxe4 {[%emt 0:00:01]}
23. Nxe4 {[%emt 0:00:01]} Be7 {[%emt 0:00:14]} 24. a4 {[%emt 0:00:05]} f5 {
[%emt 0:00:05]} 25. Nd2 {[%emt 0:00:01]} Kf7 {[%emt 0:00:06]} 26. h3 {[%emt 0:
00:05]} e5 {[%emt 0:00:02]} 27. e4 {[%emt 0:00:22]} g6 {[%emt 0:00:35]} 28. Bb2
{[%emt 0:00:02]} Ke6 {[%emt 0:00:03]} 29. f3 {[%emt 0:00:09]} h5 {[%emt 0:00:
16]} 30. Bc3 {[%emt 0:00:04]} a6 {[%emt 0:00:07]} 31. Bb2 {[%emt 0:00:03]} Bb4
{[%emt 0:00:09]} 32. Nc4 {[%emt 0:00:04]} Nc5+ {[%emt 0:00:12]} 33. Ke3 {[%emt
0:00:01]} fxe4 {[%emt 0:00:17]} 34. Nxe5 {[%emt 0:00:01]} exf3 {[%emt 0:00:11]}
35. Nxg6 {[%emt 0:00:02]} Nxb3 {[%emt 0:00:02]} 36. Nf4+ {[%emt 0:00:01]} Kf7 {
[%emt 0:00:06]} 37. Nxh5 {[%emt 0:00:01]} Nc5 {[%emt 0:00:01]} 38. g4 {[%emt 0:
00:05]} Nxa4 {[%emt 0:00:01]} 39. Ba1 {[%emt 0:00:01]} Bc3 {[%emt 0:00:02]} 40.
Bxc3 {[%emt 0:00:02]} Nxc3 {[%emt 0:00:01]} 41. Kxf3 {[%emt 0:00:03]} a5 {
[%emt 0:00:00]} 42. Ke3 {[%emt 0:00:01]} b5 {[%emt 0:00:08]} 43. Kd3 {[%emt 0:
00:01]} Nd5 {[%emt 0:00:01]} 44. Ng3 {[%emt 0:00:03]} Nf4+ {[%emt 0:00:01]} 45.
Kc3 {[%emt 0:00:01]} Nxh3 {[%emt 0:00:01]} 46. Nf5 {[%emt 0:00:01]} 1/2-1/2

[Event "Norway Chess 2015 Blitz"]
[Site "Stavanger"]
[Date "2015.06.15"]
[Round "9"]
[White "Anand, Viswanathan"]
[Black "Nakamura, Hikaru"]
[Result "1/2-1/2"]
[ECO "B52"]
[WhiteElo "2767"]
[BlackElo "2883"]
[Annotator ""]
[PlyCount "38"]
[EventDate "2015.??.??"]
[EventCountry "NOR"]
[TimeControl "180+2"]

1. e4 {[%emt 0:00:00]} c5 {[%emt 0:00:00]} 2. Nf3 {[%emt 0:00:00]} d6 {[%emt 0:
00:00]} 3. Bb5+ {[%emt 0:00:01]} Bd7 {[%emt 0:00:00]} 4. Bxd7+ {[%emt 0:00:02]}
Nxd7 {[%emt 0:00:02]} 5. O-O {[%emt 0:00:02]} Ngf6 {[%emt 0:00:00]} 6. Qe2 {
[%emt 0:00:01]} e6 {[%emt 0:00:07]} 7. c4 {[%emt 0:00:01]} Ne5 {[%emt 0:00:04]}
8. Nxe5 {[%emt 0:00:08]} dxe5 {[%emt 0:00:01]} 9. d3 {[%emt 0:00:01]} Nd7 {
[%emt 0:00:03]} 10. f4 {[%emt 0:00:15]} exf4 {[%emt 0:00:01]} 11. Bxf4 {[%emt
0:00:01]} Be7 {[%emt 0:00:05]} 12. Nc3 {[%emt 0:00:03]} O-O {[%emt 0:00:01]}
13. e5 {[%emt 0:00:02]} Nb8 {[%emt 0:00:14]} 14. Kh1 {[%emt 0:00:22]} Nc6 {
[%emt 0:00:01]} 15. Rad1 {[%emt 0:00:03]} Bg5 {[%emt 0:00:20]} 16. Bg3 {[%emt
0:00:16]} Bh4 {[%emt 0:00:01]} 17. Bf4 {[%emt 0:00:01]} Bg5 {[%emt 0:00:00]}
18. Bg3 {[%emt 0:00:01]} Bh4 {[%emt 0:00:06]} 19. Bf4 {[%emt 0:00:02]} Bg5 {
[%emt 0:00:01]} 1/2-1/2

[Event "Norway Chess 2015 Blitz"]
[Site "Stavanger"]
[Date "2015.06.15"]
[Round "9"]
[White "Aronian, Levon"]
[Black "Grischuk, Alexander"]
[Result "1/2-1/2"]
[ECO "A48"]
[WhiteElo "2816"]
[BlackElo "2839"]
[Annotator ""]
[PlyCount "96"]
[EventDate "2015.??.??"]
[EventCountry "NOR"]
[TimeControl "180+2"]

1. d4 {[%emt 0:00:00]} Nf6 {[%emt 0:00:00]} 2. Nf3 {[%emt 0:00:00]} g6 {[%emt
0:00:00]} 3. Nbd2 {[%emt 0:00:01]} c5 {[%emt 0:00:05]} 4. dxc5 {[%emt 0:00:01]}
Qa5 {[%emt 0:00:01]} 5. e4 {[%emt 0:00:01]} Bg7 {[%emt 0:00:38]} 6. Qe2 {[%emt
0:01:15]} Qxc5 {[%emt 0:00:16]} 7. c3 {[%emt 0:00:24]} O-O {[%emt 0:00:08]} 8.
Nb3 {[%emt 0:00:10]} Qc7 {[%emt 0:00:03]} 9. g3 {[%emt 0:00:16]} b6 {[%emt 0:
00:05]} 10. Nfd4 {[%emt 0:00:26]} Nxe4 {[%emt 0:00:37]} 11. Nb5 {[%emt 0:00:13]
} Qb7 {[%emt 0:00:16]} 12. Bg2 {[%emt 0:00:06]} d5 {[%emt 0:00:02]} 13. O-O {
[%emt 0:00:01]} a6 {[%emt 0:00:34]} 14. N5d4 {[%emt 0:00:01]} Nc6 {[%emt 0:00:
07]} 15. Nxc6 {[%emt 0:00:16]} Qxc6 {[%emt 0:00:02]} 16. Be3 {[%emt 0:00:01]}
Bb7 {[%emt 0:00:08]} 17. Rad1 {[%emt 0:00:02]} Rac8 {[%emt 0:00:03]} 18. Rfe1 {
[%emt 0:00:03]} Rfe8 {[%emt 0:00:06]} 19. h4 {[%emt 0:00:10]} h5 {[%emt 0:00:
02]} 20. Nd2 {[%emt 0:00:03]} Nxd2 {[%emt 0:00:18]} 21. Qxd2 {[%emt 0:00:01]}
e6 {[%emt 0:00:02]} 22. Bh6 {[%emt 0:00:01]} Bh8 {[%emt 0:00:02]} 23. Bf4 {
[%emt 0:00:03]} b5 {[%emt 0:00:04]} 24. Be5 {[%emt 0:00:01]} Bxe5 {[%emt 0:00:
03]} 25. Rxe5 {[%emt 0:00:01]} Qd6 {[%emt 0:00:01]} 26. Rde1 {[%emt 0:00:02]}
Qf8 {[%emt 0:00:02]} 27. g4 {[%emt 0:00:08]} hxg4 {[%emt 0:00:03]} 28. h5 {
[%emt 0:00:01]} Rcd8 {[%emt 0:00:04]} 29. hxg6 {[%emt 0:00:02]} Qg7 {[%emt 0:
00:02]} 30. gxf7+ {[%emt 0:00:03]} Kxf7 {[%emt 0:00:01]} 31. Rg5 {[%emt 0:00:
04]} Qf6 {[%emt 0:00:01]} 32. Rxg4 {[%emt 0:00:00]} Ke7 {[%emt 0:00:01]} 33.
Qe3 {[%emt 0:00:03]} Kd7 {[%emt 0:00:02]} 34. Qb6 {[%emt 0:00:02]} Kc8 {[%emt
0:00:01]} 35. Qd4 {[%emt 0:00:03]} Qxd4 {[%emt 0:00:02]} 36. cxd4 {[%emt 0:00:
01]} Re7 {[%emt 0:00:03]} 37. Rg6 {[%emt 0:00:01]} Rde8 {[%emt 0:00:01]} 38.
Bh3 {[%emt 0:00:01]} Kd7 {[%emt 0:00:01]} 39. Kf1 {[%emt 0:00:02]} Bc8 {[%emt
0:00:02]} 40. Re5 {[%emt 0:00:03]} Kc7 {[%emt 0:00:02]} 41. Ke2 {[%emt 0:00:01]
} Bd7 {[%emt 0:00:01]} 42. Bg4 {[%emt 0:00:02]} b4 {[%emt 0:00:01]} 43. Ke3 {
[%emt 0:00:03]} a5 {[%emt 0:00:00]} 44. Rf6 {[%emt 0:00:04]} Kd6 {[%emt 0:00:
03]} 45. Bf3 {[%emt 0:00:02]} Kc7 {[%emt 0:00:02]} 46. Bg4 {[%emt 0:00:00]} Kd6
{[%emt 0:00:05]} 47. Bf3 {[%emt 0:00:01]} Bc6 {[%emt 0:00:01]} 48. Bg4 {[%emt
0:00:01]} Bd7 {[%emt 0:00:02]} 1/2-1/2

[Event "Norway Chess 2015 Blitz"]
[Site "Stavanger"]
[Date "2015.06.15"]
[Round "9"]
[White "Carlsen, Magnus"]
[Black "Hammer, Jon Ludvig"]
[Result "1-0"]
[ECO "D31"]
[WhiteElo "2933"]
[BlackElo "2648"]
[Annotator ""]
[PlyCount "109"]
[EventDate "2015.??.??"]
[EventCountry "NOR"]
[TimeControl "180+2"]

1. d4 {[%emt 0:00:00]} d5 {[%emt 0:00:00]} 2. c4 {[%emt 0:00:00]} e6 {[%emt 0:
00:00]} 3. Nc3 c6 4. e3 {[%emt 0:00:05]} Nf6 {[%emt 0:00:02]} 5. b3 {[%emt 0:
00:01]} Bb4 {[%emt 0:00:06]} 6. Bb2 {[%emt 0:00:01]} Qa5 {[%emt 0:00:09]} 7.
Qc1 {[%emt 0:00:04]} Ne4 {[%emt 0:00:08]} 8. Nge2 {[%emt 0:00:01]} c5 {[%emt 0:
00:05]} 9. a3 {[%emt 0:00:04]} Bxc3+ {[%emt 0:00:02]} 10. Nxc3 {[%emt 0:00:02]}
cxd4 {[%emt 0:00:01]} 11. b4 {[%emt 0:00:03]} Qc7 {[%emt 0:00:14]} 12. Nxe4 {
[%emt 0:00:03]} dxe4 {[%emt 0:00:01]} 13. Bxd4 {[%emt 0:00:02]} O-O {[%emt 0:
00:02]} 14. Be2 {[%emt 0:00:03]} Nc6 {[%emt 0:00:02]} 15. Bb2 {[%emt 0:00:08]}
b6 {[%emt 0:00:09]} 16. O-O {[%emt 0:00:04]} Bb7 {[%emt 0:00:04]} 17. c5 {
[%emt 0:00:03]} bxc5 {[%emt 0:00:05]} 18. Qxc5 {[%emt 0:00:02]} Qe7 {[%emt 0:
00:16]} 19. Rac1 {[%emt 0:00:02]} Qxc5 {[%emt 0:00:05]} 20. Rxc5 {[%emt 0:00:
02]} Rfd8 {[%emt 0:00:10]} 21. b5 {[%emt 0:00:01]} Na5 {[%emt 0:00:08]} 22. Rd1
{[%emt 0:00:12]} Rxd1+ {[%emt 0:00:07]} 23. Bxd1 {[%emt 0:00:01]} Rd8 {[%emt 0:
00:00]} 24. Bc2 {[%emt 0:00:11]} Bd5 {[%emt 0:00:17]} 25. a4 {[%emt 0:00:13]}
Bb3 {[%emt 0:00:05]} 26. h4 {[%emt 0:00:02]} Bxc2 {[%emt 0:00:20]} 27. Rxc2 {
[%emt 0:00:01]} h5 {[%emt 0:00:48]} 28. Bd4 {[%emt 0:00:02]} Nb3 {[%emt 0:00:
06]} 29. Bxa7 {[%emt 0:00:01]} Rd1+ {[%emt 0:00:04]} 30. Kh2 {[%emt 0:00:01]}
Ra1 {[%emt 0:00:05]} 31. b6 {[%emt 0:00:03]} Na5 {[%emt 0:00:01]} 32. Rc5 {
[%emt 0:00:01]} Rxa4 {[%emt 0:00:13]} 33. Rxa5 {[%emt 0:00:02]} Rxa5 {[%emt 0:
00:01]} 34. b7 {[%emt 0:00:01]} Rb5 {[%emt 0:00:01]} 35. b8=Q+ {[%emt 0:00:01]}
Rxb8 {[%emt 0:00:00]} 36. Bxb8 {[%emt 0:00:01]} f6 37. Kg3 e5 38. f4 {[%emt 0:
00:17]} exf3 {[%emt 0:00:03]} 39. Kxf3 Kf7 40. e4 {[%emt 0:00:12]} Ke6 {[%emt
0:00:05]} 41. g4 {[%emt 0:00:04]} hxg4+ {[%emt 0:00:01]} 42. Kxg4 {[%emt 0:00:
02]} g6 {[%emt 0:00:01]} 43. Ba7 {[%emt 0:00:04]} Kf7 {[%emt 0:00:01]} 44. h5 {
[%emt 0:00:06]} f5+ {[%emt 0:00:03]} 45. exf5 {[%emt 0:00:02]} gxf5+ {[%emt 0:
00:01]} 46. Kxf5 {[%emt 0:00:01]} Kg7 {[%emt 0:00:00]} 47. Be3 {[%emt 0:00:02]}
Kh7 {[%emt 0:00:01]} 48. Kxe5 {[%emt 0:00:01]} Kg7 {[%emt 0:00:00]} 49. Kf5 Kh7
50. Kf6 {[%emt 0:00:02]} Kh8 {[%emt 0:00:01]} 51. Kg6 {[%emt 0:00:01]} Kg8 {
[%emt 0:00:01]} 52. Bc5 {[%emt 0:00:00]} Kh8 {[%emt 0:00:00]} 53. h6 Kg8 54.
h7+ {[%emt 0:00:02]} Kh8 {[%emt 0:00:01]} 55. Bd4# 1-0

[Event "Norway Chess 2015 Blitz"]
[Site "Stavanger"]
[Date "2015.06.15"]
[Round "9"]
[White "Caruana, Fabiano"]
[Black "Giri, Anish"]
[Result "0-1"]
[ECO "B90"]
[WhiteElo "2679"]
[BlackElo "2771"]
[Annotator ""]
[PlyCount "74"]
[EventDate "2015.??.??"]
[EventCountry "NOR"]
[TimeControl "180+2"]

1. e4 {[%emt 0:00:00]} c5 {[%emt 0:00:00]} 2. Nf3 {[%emt 0:00:02]} d6 {[%emt 0:
00:01]} 3. d4 {[%emt 0:00:01]} cxd4 {[%emt 0:00:01]} 4. Nxd4 {[%emt 0:00:01]}
Nf6 {[%emt 0:00:02]} 5. Nc3 {[%emt 0:00:02]} a6 {[%emt 0:00:01]} 6. Be3 {[%emt
0:00:02]} e6 {[%emt 0:00:02]} 7. a4 {[%emt 0:00:04]} Nc6 {[%emt 0:00:03]} 8.
Be2 {[%emt 0:00:04]} Be7 {[%emt 0:00:01]} 9. O-O {[%emt 0:00:02]} O-O {[%emt 0:
00:02]} 10. f4 {[%emt 0:00:02]} Qc7 {[%emt 0:00:04]} 11. Kh1 {[%emt 0:00:02]}
Re8 {[%emt 0:00:14]} 12. Bd3 {[%emt 0:00:03]} Nb4 {[%emt 0:00:04]} 13. Qf3 {
[%emt 0:00:03]} Bf8 {[%emt 0:00:15]} 14. a5 {[%emt 0:00:16]} Bd7 {[%emt 0:00:
06]} 15. Nb3 {[%emt 0:00:40]} Bc6 {[%emt 0:00:05]} 16. Bb6 {[%emt 0:00:05]} Qb8
{[%emt 0:00:09]} 17. Rae1 {[%emt 0:00:02]} Nd7 {[%emt 0:00:04]} 18. Be3 {[%emt
0:00:10]} Qc7 {[%emt 0:00:19]} 19. Qh3 {[%emt 0:00:01]} b5 {[%emt 0:00:15]} 20.
axb6 {[%emt 0:00:10]} Nxb6 {[%emt 0:00:01]} 21. Nd4 {[%emt 0:00:03]} Na4 {
[%emt 0:00:14]} 22. Nd1 {[%emt 0:00:30]} Nxd3 {[%emt 0:00:23]} 23. cxd3 {[%emt
0:00:01]} Rab8 {[%emt 0:00:00]} 24. f5 {[%emt 0:00:12]} exf5 {[%emt 0:00:14]}
25. Nxf5 {[%emt 0:00:04]} Bd7 {[%emt 0:00:13]} 26. Nh6+ {[%emt 0:00:10]} gxh6 {
[%emt 0:00:01]} 27. Qg3+ {[%emt 0:00:01]} Kh8 {[%emt 0:00:03]} 28. Rxf7 {[%emt
0:00:12]} Rb4 {[%emt 0:00:33]} 29. Ref1 {[%emt 0:00:36]} Qd8 {[%emt 0:00:01]}
30. Nc3 {[%emt 0:00:02]} Be6 {[%emt 0:00:20]} 31. Ra7 {[%emt 0:00:01]} Re7 {
[%emt 0:00:01]} 32. Rxa6 {[%emt 0:00:13]} Nxc3 {[%emt 0:00:08]} 33. bxc3 {
[%emt 0:00:01]} Rbb7 {[%emt 0:00:01]} 34. Rxd6 {[%emt 0:00:02]} Rbd7 {[%emt 0:
00:00]} 35. Rxf8+ {[%emt 0:00:06]} Qxf8 {[%emt 0:00:02]} 36. Bd4+ {[%emt 0:00:
01]} Rg7 {[%emt 0:00:00]} 37. Bxg7+ {[%emt 0:00:04]} Rxg7 {[%emt 0:00:01]} 0-1

[Event "Norway Chess 2015 Blitz"]
[Site "Stavanger"]
[Date "2015.06.15"]
[Round "9"]
[White "Vachier-Lagrave, Maxime"]
[Black "Topalov, Veselin"]
[Result "1-0"]
[ECO "A06"]
[WhiteElo "2886"]
[BlackElo "2641"]
[Annotator ""]
[PlyCount "71"]
[EventDate "2015.??.??"]
[EventCountry "NOR"]
[TimeControl "180+2"]

1. Nf3 {[%emt 0:00:00]} d5 {[%emt 0:00:00]} 2. g3 {[%emt 0:00:01]} c6 {[%emt 0:
00:02]} 3. Bg2 {[%emt 0:00:02]} g6 {[%emt 0:00:01]} 4. O-O {[%emt 0:00:12]} Bg7
{[%emt 0:00:01]} 5. d4 {[%emt 0:00:01]} Bg4 {[%emt 0:00:04]} 6. Nbd2 {[%emt 0:
00:06]} Qc8 {[%emt 0:00:06]} 7. c4 {[%emt 0:00:04]} Nf6 {[%emt 0:00:02]} 8. Ne5
{[%emt 0:00:13]} Be6 {[%emt 0:00:03]} 9. cxd5 {[%emt 0:00:03]} Nxd5 {[%emt 0:
00:02]} 10. Nb3 {[%emt 0:00:06]} Na6 {[%emt 0:00:05]} 11. e4 {[%emt 0:00:03]}
Nb6 {[%emt 0:00:02]} 12. Be3 {[%emt 0:00:10]} O-O {[%emt 0:00:08]} 13. Rc1 {
[%emt 0:00:02]} Bh3 {[%emt 0:00:20]} 14. Bxh3 {[%emt 0:00:06]} Qxh3 {[%emt 0:
00:01]} 15. Nd3 {[%emt 0:00:02]} Rad8 {[%emt 0:00:02]} 16. Qe2 {[%emt 0:00:03]}
Qe6 {[%emt 0:00:14]} 17. Ndc5 {[%emt 0:00:03]} Nxc5 {[%emt 0:00:02]} 18. Nxc5 {
[%emt 0:00:02]} Qc8 {[%emt 0:00:04]} 19. Rfd1 {[%emt 0:00:03]} Nd7 {[%emt 0:00:
06]} 20. d5 {[%emt 0:00:09]} Nxc5 {[%emt 0:00:01]} 21. Bxc5 {[%emt 0:00:02]}
Rd7 {[%emt 0:00:07]} 22. dxc6 {[%emt 0:00:25]} bxc6 {[%emt 0:00:07]} 23. Rxd7 {
[%emt 0:00:02]} Qxd7 {[%emt 0:00:00]} 24. Rd1 {[%emt 0:00:00]} Qc7 {[%emt 0:00:
01]} 25. b3 {[%emt 0:00:02]} h5 {[%emt 0:00:05]} 26. Qa6 {[%emt 0:00:08]} Qe5 {
[%emt 0:00:03]} 27. Qxc6 {[%emt 0:00:11]} h4 {[%emt 0:00:05]} 28. Qd5 {[%emt 0:
00:07]} Qb2 {[%emt 0:00:08]} 29. Bxe7 {[%emt 0:00:04]} Rc8 {[%emt 0:00:06]} 30.
Bxh4 {[%emt 0:00:05]} Qxa2 {[%emt 0:00:02]} 31. Bg5 {[%emt 0:00:05]} Re8 {
[%emt 0:00:11]} 32. Be3 {[%emt 0:00:04]} Qc2 {[%emt 0:00:02]} 33. Rc1 {[%emt 0:
00:03]} Qxe4 {[%emt 0:00:18]} 34. Qxe4 {[%emt 0:00:02]} Rxe4 {[%emt 0:00:01]}
35. Rc8+ {[%emt 0:00:01]} Kh7 {[%emt 0:00:00]} 36. Rc7 {[%emt 0:00:02]} 1-0